Workbook

Sheet 2022
A1: Income and Expense 2022 / Budget 2023
C3: JAN | D3: FEB | E3: MAR | F3: APR | G3: MAY | H3: JUN | I3: JUL | J3: AUG | K3: SEP | L3: OCT | M3: NOV | N3: DEC | P3: Total | Q3: 2022 Budget | R3: Prop 2023 Budget
A5: Income | C5: 7124.16 | D5: 4591.65 | E5: 5659.27 | F5: 6261.99 | G5: 5533.65 | H5: 5498.2 | I5: 4106 | J5: 10077.3 | K5: 4737.77 | L5: 3285.44 | M5: 7159.12 | N5: 5111.57 | P5: =SUM(C5:N5) -> 69146.12
P6: =SUM(C6:N6) -> 0
A7: Expenses | P7: 0
A8: Office Expenses | P8: =SUM(C8:N8) -> 0 | Q8: 400
B9: Labor Law Poster | C9: 15.9 | P9: 15.9
A10: Advertising | P10: 0
A11: Christian Education Supplies | P11: 0 | Q11: 150
A12: Youth Group | P12: 0
A13: Continuing Education | P13: 0
A14: Music Expense | P14: 0 | Q14: 2000
A15: Worship/Vitality Group Expenses | P15: 0
A16: Fellowship Expenses | P16: 0
A17: Lenten Luncheon | P17: 0 | Q17: 0
A18: Muirhead Fund Repayment | P18: 0
A19: Special Event Expenses / Misc. | H19: 606.43 | J19: 180.53 | K19: 17.95 | M19: 33.65 | N19: 223.93 | P19: 1062.49 | Q19: 0
A20: Equipment | P20: 0
A21: Ministry | D21: 179 | P21: 179 | Q21: 750
A22: Education and Books | P22: 0
A23: Web Hosting | E23: 38.88 | P23: 38.88 | Q23: 40
A24: Parsonage (Maintenance Repairs) | N24: 498.39 | P24: 498.39
A25: Domain Name Renewal | E25: 15.16 | P25: 15.16
P26: 0
A27: Missions | P27: 0
A28: Our Church's Wider Mission | C28: 92 | D28: 92 | E28: 92 | F28: 92 | G28: 92 | H28: 92 | I28: 92 | J28: 92 | K28: 92 | L28: 92 | M28: 92 | N28: 92 | P28: 1104 | Q28: 1100
A29: Global Ministries | D29: 75 | J29: 75 | P29: 150 | Q29: 0
A30: Capital Area Council of Churches | F30: 75 | P30: 75 | Q30: 50
A31: Albany Damian Center | G31: 75 | P31: 75 | Q31: 50
A32: Unity House | H32: 75 | P32: 75 | Q32: 50
A33: Boy's and Girl's Club | I33: 75 | P33: 75 | Q33: 50
A34: Interfaith Partnership for the Homeless | E34: 75 | P34: 75
A35: Protestant Campus Ministry | K35: 75 | P35: 75
A36: Per Capita Dues Expense | F36: 477 | P36: 477 | Q36: 450
A37: NY Conference Annual Meeting | H37: 574.58 | P37: 574.58 | Q37: 450
A38: Doors of Hope | M38: 75 | P38: 75
A39: Veterans Miracle Center | M39: 75 | P39: 75
A40: Family Promise of the Capital Region | N40: 75 | P40: 75
A41: Internet Fees | P41: 0
A42: Postage | G42: 58 | P42: 58 | Q42: 50
A43: Rent - Copier | C43: 152.75 | D43: 152.75 | E43: 152.75 | F43: 300 | G43: 0 | H43: 0 | I43: 0 | J43: 0 | K43: 0 | L43: 0 | M43: 0 | N43: 0 | P43: =SUM(C43:O43) -> 758.25 | Q43: 0
A44: Copier Per Page Usage | C44: 0.61 | H44: 2 | I44: 2.69 | J44: 4.43 | K44: 8.06 | L44: 26.5 | M44: 7.02 | P44: 51.31 | Q44: 0
A45: ZOOM | C45: 14.99 | D45: 14.99 | E45: 14.99 | F45: 14.99 | G45: 14.99 | I45: 14.99 | J45: 14.99 | K45: 14.99 | L45: 14.99 | M45: 14.99 | N45: 14.99 | P45: 164.89
P46: 0
A47: Property and Maintenance | P47: 0
A48: Church Mutual - Liability Insurance (Quartly) | C48: 1098.25 | H48: 1119 | I48: 1111.5 | L48: 1115.25 | P48: 4444 | Q48: 4600
A49: Church Mutual - Umbrella Ins (Annualy) | H49: 300 | P49: 300
A50: Emergency Repairs | J50: 664 | N50: 357.48 | P50: 1021.48
A51: SnowPlowing/Sanding | E51: 230 | G51: 180 | P51: 410 | Q51: 500
A52: Lawn Mowing | H52: 75 | I52: 225 | J52: 150 | K52: 300 | L52: 225 | M52: 75 | P52: 1050
A53: Tri City Extinguisher Inspection | N53: 231.75 | P53: 231.75 | Q53: 200
A54: Elevator Service | G54: 320.7 | M54: 320.7 | P54: 641.4 | Q54: 650
A55: Elevator Slack Test | P55: 0
A56: Furnace Inspection - Hartford | H56: 105 | P56: 105 | Q56: 150
A57: Furnace Cleaning Church/Parsonage | P57: 0 | Q57: 250
A58: Atsco Paper Supplies, Plastic Liners, etc. | P58: 0
A59: Telephone/Internet - Church | C59: 159.98 | D59: 159.98 | E59: 159.98 | F59: 159.99 | G59: 159.95 | H59: 159.98 | I59: 159.98 | J59: 0 | K59: 319.96 | L59: 159.98 | M59: 159.98 | N59: 159.98 | P59: 1919.74 | Q59: 1920
A60: Gas - Church | C60: 186 | D60: 186 | E60: 229 | G60: 229 | H60: 483 | J60: 508 | K60: 254 | L60: 254 | M60: 125.67 | N60: 212 | P60: 2666.67 | Q60: 2500
A61: Electric - Church | C61: 77 | D61: 77 | E61: 77 | G61: 74 | H61: 148 | J61: 148 | K61: 74 | L61: 74 | M61: 74 | N61: 74 | P61: 897 | Q61: 100
A62: Electric & Gas - Parsonage | C62: 252.18 | D62: 254.39 | E62: 267.66 | G62: 170 | H62: 274.98 | J62: 350.2 | K62: 174.46 | L62: 134.25 | M62: 138.9 | N62: 166.73 | P62: 2183.75 | Q62: 1826.52
A64: Taxes and Insurance | P64: 0
A65: Water and Sewer - Parsonage | D65: 74.26 | G65: 86.66 | J65: 82.1 | M65: 84.79 | P65: 327.81 | Q65: 250
A66: Water and Sewer - Church | D66: 24.16 | G66: 41.89 | J66: 43.57 | M66: 42.53 | P66: 152.15 | Q66: 200
A67: City Services (Ambulance, Fire, etc.) | C67: 112.07 | G67: 546.38 | P67: 658.45 | Q67: 1100
A68: Workers Compensation | D68: 10 | P68: 10 | Q68: 626
A69: NY State Disability | P69: 0 | Q69: 180
A70: Certified Public Accountant | P70: 0
P71: 0
A72: Salaries
A73: Salary - Minister | C73: 1729.84 | D73: 1729.85 | E73: 1729.85 | F73: 1729.84 | G73: 1729.85 | H73: 1729.84 | P73: =SUM(C73:N73) -> 10379.07 | Q73: 21539.56
A74: Salary - Cleaner | D74: 109.61 | E74: 82.2 | F74: 54.8 | G74: 137.01 | H74: 137 | M74: 30 | N74: 30 | P74: 580.62 | Q74: 1675
A75: Housing Allowance $17,000 yr | P75: 0
A76: Pension Plan | C76: 291.67 | D76: 291.67 | E76: 291.67 | F76: 291.67 | G76: 291.67 | P76: 1458.35
A77: W2 Fees (Annual) | I77: 79.8 | P77: 79.8
A78: Pulpit Supply | I78: 1000 | J78: 800 | K78: 800 | L78: 1000 | M78: 200 | N78: 200 | P78: 4000 | Q78: 500
B79: Donated Back to UCC | L79: 300 | M79: 500 | N79: 300 | O79: =SUM(C79:N79) -> 1100
B80: Donated to ConsernsU | L80: 300 | M80: 500 | N80: 300 | O80: =SUM(C80:N80) -> 1100
A81: Search Committee | P81: 0
A82: Salary - Organist | P82: 0 | Q82: 0
A83: Organist Supply | P83: 0 | Q83: 0
A84: CCLI - Copyright Coverage, Song Select, Stream | D84: 418 | P84: 418 | Q84: 0
A85: Payroll Service | C85: 85.75 | D85: 48.27 | E85: 48.27 | F85: 51.16 | G85: 51.16 | H85: 51.16 | I85: 51.16 | P85: 386.93 | Q85: 588
A86: Payroll Taxes/Witholding | C86: 349.63 | D86: 367.98 | E86: 363.4 | F86: 358.81 | G86: 372.57 | H86: 372.59 | P86: 2184.98 | Q86: 4700
A87: Vanco- E Giving (Monthly Fee) | C87: 55.33 | D87: 34.47 | E87: 43.1 | F87: 51.39 | G87: 36.9 | H87: 43.02 | I87: 29.65 | J87: 30.29 | K87: 36.22 | L87: 29.7 | M87: 33.77 | N87: 32.3 | P87: 456.14 | Q87: 705
P88: 0
A89: TOTAL EXPENSES | C89: =SUM(C8:C88) -> 4673.95 | D89: 4299.38 | E89: 3910.91 | F89: 3656.65 | G89: 4667.73 | H89: 6348.58 | I89: 2841.77 | J89: 3143.11 | K89: 2166.64 | L89: 3725.67 | M89: 2583 | N89: 2968.55 | P89: 44985.94 | Q89: =SUM(Q8:Q88) -> 50350.08 | R89: =SUM(R8:R88) -> 0
A91: OVER / UNDER MONTHLY | C91: =C5-C89 -> 2450.21 | D91: 292.27 | E91: 1748.36 | F91: 2605.34 | G91: 865.92 | H91: -850.38 | I91: 1264.23 | J91: 6934.19 | K91: 2571.13 | L91: -440.23 | M91: 4576.12 | N91: 2143.02 | P91: 24160.18
C93: Jan | D93: Feb | E93: Mar | F93: Apr | G93: May | H93: June | I93: July | J93: Aug | K93: Sept | L93: Oct | M93: Nov | N93: Dec

Sheet 2023
A1: Income and Expense 2023 / Budget 2024
C3: JAN | D3: FEB | E3: MAR | F3: APR | G3: MAY | H3: JUN | I3: JUL | J3: AUG | K3: SEP | L3: OCT | M3: NOV | N3: DEC | P3: Total | Q3: 2023 Budget | R3: 2024 Budget
A5: Income | C5: 3607.53 | D5: 14263.31 | E5: 4086.75 | F5: 3578.97 | G5: 5055.24 | H5: 3581.21 | I5: 3993.71 | J5: 3853.97 | K5: 3445.3 | P5: =SUM(C5:N5) -> 45465.99
A7: Expenses
A8: Office Expenses
A9: Advertising | P9: =SUM(C9:N9) -> 0 | Q9: 25 | R9: 500
A10: Christian Education Supplies | P10: 0
A11: Continuing Education | P11: 0
A12: Music Expense | P12: 0
A13: Worship/Vitality Group Expenses | P13: 0
A14: Fellowship Expenses | L14: 7.18 | P14: 7.18 | Q14: 100 | R14: 100
A15: Lenten Luncheon | P15: 0
A16: Special Event Expenses / Misc. | E16: 1000 | G16: 95.76 | K16: 620.22 | P16: 1715.98 | Q16: 1100 | R16: 1000
A17: Equipment | L17: 279 | P17: 279 | R17: 500
A18: Ministry | D18: 179 | P18: 179 | Q18: 200
A19: Education and Books | P19: 0 | Q19: 150
A20: Web Hosting | E20: 10 | P20: 10 | Q20: 40 | R20: 40
A21: Copier Per Page Usage | C21: 19.08 | D21: 5.19 | E21: 11.45 | G21: 18.35 | H21: 7.39 | I21: 3.13 | J21: 5.41 | K21: 13.07 | P21: =SUM(C21:N21) -> 83.07 | Q21: 55
A22: Postage | L22: 66 | P22: =SUM(C22:N22) -> 66 | Q22: 65 | R22: 100
A23: Domain Name Renewal | E23: 38.88 | P23: 38.88 | Q23: 20 | R23: 40
A25: Missions
A26: Our Church's Wider Mission | C26: 92 | D26: 92 | E26: 92 | F26: 92 | G26: 92 | H26: 92 | I26: 92 | J26: 92 | K26: 92 | L26: 92 | P26: 920 | Q26: 1104 | R26: 900
A27: EGB Police Dept. (Annual) | C27: 50 | P27: 50 | Q27: 50 | R27: 100
A28: Bruen Rescue (Annual) | P28: 0 | R28: 100
A29: Capital Area Council of Churches | P29: 0 | R29: 50
A30: Albany Damian Center | P30: 0 | R30: 50
A31: Boy's and Girl's Club | P31: 0 | R31: 50
A32: Interfaith Partnership for the Homeless | P32: 0 | R32: 50
A33: Protestant Campus Ministry | D33: 50 | P33: 50 | Q33: 50 | R33: 0
A34: Doors of Hope | E34: 50 | P34: 50 | Q34: 50 | R34: 0
A35: Veterans Miracle Center | F35: 50 | P35: 50 | Q35: 50 | R35: 0
A36: Family Promise of the Capital Region | G36: 50 | P36: 50 | Q36: 50 | R36: 0
A38: NY Conference Annual Meeting | P38: =SUM(C38:N38) -> 0 | Q38: 600 | R38: 0
A39: Per Capita Dues Expense | G39: 270 | P39: =SUM(C39:N39) -> 270 | Q39: 485 | R39: 270
A40: ZOOM | C40: 14.99 | D40: 14.99 | E40: 15.99 | F40: 15.99 | G40: 15.99 | H40: 15.99 | I40: 15.99 | J40: 15.99 | K40: 15.99 | L40: 15.99 | P40: 157.9 | Q40: 170 | R40: 200
A42: Property and Maintenance
A43: Church Mutual - Liability Ins | C43: 1115.25 | G43: 2488.5 | L43: 2472.5 | P43: 6076.25 | Q43: 4500 | R43: 5000
A44: Church Mutual - Umbrella Ins (Annually) | H44: 300 | P44: 300 | Q44: 300 | R44: 300
A45: Emergency Repairs | D45: 1004 | E45: 185 | G45: 492 | P45: 1681 | Q45: 1100 | R45: 2000
A46: Snow Plowing / Sanding | D46: 235 | F46: 310 | P46: 545 | Q46: 500 | R46: 600
A47: Lawn Mowing | G47: 75 | H47: 140 | P47: 215 | Q47: 1000
A48: Tri City Extinguisher Inspection | C48: 231.75 | P48: 231.75 | Q48: 250 | R48: 250
A49: Elevator Service | G49: 331.92 | K49: 100 | P49: 431.92 | Q49: 650 | R49: 600
A50: Elevator Slack Test (every odd year) | P50: 0 | Q50: 750 | R50: 0
A51: Furnace Inspection - Hartford (Even Year) | P51: 0 | Q51: 150 | R51: 150
A52: Furnace Cleaning Church/Parsonage | P52: 0 | Q52: 550 | R52: 600
A53: Equipment (Lawn Mowers Etc.) | G53: 1374.98 | P53: =SUM(C53:N53) -> 1374.98 | R53: 500
A54: Parsonage (Maintenance Repairs) | C54: 1900 | D54: 493 | P54: =SUM(C54:N54) -> 2393 | Q54: 2000 | R54: 2000
A55: Paper Supplies, Plastic Liners, etc. | I55: 23.38 | P55: =SUM(B55:M55) -> 23.38 | Q55: 100 | R55: 100
A56: Telephone/Internet | C56: 159.98 | D56: 159.98 | E56: 169.98 | F56: 169.98 | G56: 169.98 | H56: 169.98 | I56: 169.98 | J56: 164.68 | K56: 169.98 | L56: 169.98 | P56: 1674.5 | Q56: 1920 | R56: 2040
A57: Gas - Church | C57: 212 | D57: 212 | F57: 212 | G57: 424 | H57: 212 | I57: 212 | J57: 212 | L57: 258 | P57: 1954 | Q57: 2700 | R57: 2700
A58: Electric - Church | C58: 101 | D58: 101 | F58: 101 | G58: 174 | H58: 87 | I58: 87 | J58: 87 | L58: 87 | P58: 825 | Q58: 900 | R58: 1000
A59: Gas & Electric - Parsonage | C59: 228.94 | D59: 294.49 | F59: 132 | G59: 298.18 | H59: 95.25 | I59: 124.37 | J59: 147.31 | L59: 119.78 | P59: 1440.32
A61: Taxes and Insurance
A62: Water and Sewer - Parsonage | D62: 57.52 | G62: 57.82 | J62: 64.52 | P62: 179.86 | Q62: 350 | R62: 350
A63: Water and Sewer - Church | D63: 43.54 | G63: 44.25 | J63: 44.85 | P63: 132.64 | Q63: 200 | R63: 200
A64: City Services (Ambulance, Fire, etc.) | C64: 627.97 | G64: 387 | P64: 1014.97 | Q64: 700 | R64: 1100
A65: Workers Compensation | P65: 0
A66: NY State Disability | P66: 0
A68: Salaries
A69: Salary - Minister | P69: =SUM(C69:N69) -> 0
A70: Salary - Cleaner | C70: 33.75 | E70: 30 | F70: 30 | G70: 30 | I70: 30 | J70: 30 | P70: 183.75 | Q70: 500 | R70: 300
A71: Housing Allowance $17,000 yr | P71: 0
A72: Pension Plan | P72: 0
A73: W2 Fees (Annual) | P73: 0
A74: Pulpit Supply | H74: 1000 | I74: 400 | J74: 600 | K74: 800 | P74: 2800 | Q74: 10000 | R74: 10400
B75: Donated Back to UCC | D75: 400 | E75: 400 | F75: 400 | G75: 500 | H75: 400 | I75: 200 | K75: 100 | P75: =SUM(C75:N75) -> 2400
B76: Donated to ConsernsU | D76: 400 | E76: 400 | F76: 400 | G76: 500 | H76: 400 | I76: 200 | K76: 100 | P76: =SUM(C76:N76) -> 2400
P77: =SUM(P75:P76,P74) -> 7600
A78: Search Committee | P78: 0
A79: Salary - Organist | P79: 0
A80: Organist Supply | P80: 0
A81: Payroll Service | P81: 0
A82: Payroll Taxes/Witholding | P82: 0
A83: Vanco- E Giving (Monthly Fee) | C83: 36.19 | D83: 43.46 | E83: 35.52 | F83: 35.97 | G83: 34.62 | H83: 38.11 | I83: 35.07 | J83: 37.41 | K83: 35.47 | L83: 33.87 | P83: 365.69 | Q83: 475 | R83: 475
A85: TOTAL EXPENSES | C85: =SUM(C9:C58,C62:C83) -> 4593.96 | D85: 3490.68 | E85: 2438.82 | F85: 1816.94 | G85: 7626.17 | H85: 2862.47 | I85: 1468.55 | J85: 1353.86 | K85: 2046.73 | L85: 3481.52 | M85: 0 | N85: 0 | P85: =SUM(P9:P58,P62:P73,P77:P83) -> 31179.7 | Q85: =SUM(Q9:Q83) -> 33959 | R85: =SUM(R9:R83) -> 34715
A87: INCOME - EXPENSES | C87: =+C5-C85 -> -986.43 | D87: 10772.63 | E87: 1647.93 | F87: 1762.03 | G87: -2570.93 | H87: 718.74 | I87: 2525.16 | J87: 2500.11 | K87: 1398.57 | L87: -3481.52 | M87: 0 | N87: 0 | P87: =SUM(C87:N87) -> 14286.29

Sheet Budget propoasl 2024
A1: 2024
C3: JAN | D3: FEB | E3: MAR | F3: APR | G3: MAY | H3: JUN | I3: JUL | J3: AUG | K3: SEP | L3: OCT | M3: NOV | N3: DEC | P3: Total | Q3: 2023 Budget | R3: 2024 Budget
A5: Income | C5: 3607.53 | D5: 14263.31 | E5: 4086.75 | F5: 3578.97 | G5: 5055.24 | H5: 3581.21 | I5: 3993.71 | J5: 3853.97 | K5: 3445.3 | L5: 3981 | M5: 3918 | N5: 3918 | P5: =SUM(C5:N5) -> 57282.99
A7: Expenses
A8: Office Expenses
A9: Advertising | P9: =SUM(C9:N9) -> 0 | Q9: 25 | R9: 500
A10: Christian Education Supplies | P10: 0
A11: Continuing Education | P11: 0
A12: Music Expense | P12: 0
A13: Worship/Vitality Group Expenses | P13: 0
A14: Fellowship Expenses | L14: 7.18 | M14: 10 | N14: 10 | P14: 27.18 | Q14: 100 | R14: 100
A15: Lenten Luncheon | P15: 0
A16: Special Event Expenses / Misc. | E16: 1000 | G16: 95.76 | K16: 620.22 | P16: 1715.98 | Q16: 1100 | R16: 1000
A17: Equipment | L17: 279 | P17: 279 | R17: 500
A18: Ministry | D18: 179 | P18: 179 | Q18: 200
A19: Education and Books | P19: 0 | Q19: 150
A20: Web Hosting | E20: 10 | P20: 10 | Q20: 40 | R20: 40
A21: Copier Per Page Usage | C21: 19.08 | D21: 5.19 | E21: 11.45 | G21: 18.35 | H21: 7.39 | I21: 3.13 | J21: 5.41 | K21: 13.07 | P21: =SUM(C21:N21) -> 83.07 | Q21: 55
A22: Postage | L22: 66 | P22: =SUM(C22:N22) -> 66 | Q22: 65 | R22: 100
A23: Domain Name Renewal | E23: 38.88 | P23: 38.88 | Q23: 20 | R23: 40
A25: Missions
A26: Our Church's Wider Mission | C26: 92 | D26: 92 | E26: 92 | F26: 92 | G26: 92 | H26: 92 | I26: 92 | J26: 92 | K26: 92 | L26: 92 | M26: 92 | N26: 92 | P26: 1104 | Q26: 1104 | R26: 900
A27: EGB Police Dept. (Annual) | C27: 50 | P27: 50 | Q27: 50 | R27: 100
A28: Bruen Rescue (Annual) | P28: 0 | R28: 100
A29: Capital Area Council of Churches | P29: 0 | R29: 50
A30: Albany Damian Center | P30: 0 | R30: 50
A31: Boy's and Girl's Club | P31: 0 | R31: 50
A32: Interfaith Partnership for the Homeless | P32: 0 | R32: 50
A33: Protestant Campus Ministry | D33: 50 | P33: 50 | Q33: 50 | R33: 0
A34: Doors of Hope | E34: 50 | P34: 50 | Q34: 50 | R34: 0
A35: Veterans Miracle Center | F35: 50 | P35: 50 | Q35: 50 | R35: 0
A36: Family Promise of the Capital Region | G36: 50 | P36: 50 | Q36: 50 | R36: 0
A38: NY Conference Annual Meeting | P38: =SUM(C38:N38) -> 0 | Q38: 600 | R38: 0
A39: Per Capita Dues Expense | G39: 270 | P39: =SUM(C39:N39) -> 270 | Q39: 485 | R39: 270
A40: ZOOM | C40: 14.99 | D40: 14.99 | E40: 15.99 | F40: 15.99 | G40: 15.99 | H40: 15.99 | I40: 15.99 | J40: 15.99 | K40: 15.99 | L40: 15.99 | M40: 15.99 | N40: 15.99 | P40: 189.88 | Q40: 170 | R40: 200
A42: Property and Maintenance
A43: Church Mutual - Liability Ins | C43: 1115.25 | G43: 2488.5 | L43: 2472.5 | P43: 6076.25 | Q43: 4500 | R43: 5000
A44: Church Mutual - Umbrella Ins (Annually) | H44: 300 | P44: 300 | Q44: 300 | R44: 300
A45: Emergency Repairs | D45: 1004 | E45: 185 | G45: 492 | P45: 1681 | Q45: 1100 | R45: 2000
A46: Snow Plowing / Sanding | D46: 235 | F46: 310 | P46: 545 | Q46: 500 | R46: 600
A47: Lawn Mowing | G47: 75 | H47: 140 | P47: 215 | Q47: 1000
A48: Tri City Extinguisher Inspection | C48: 231.75 | P48: 231.75 | Q48: 250 | R48: 250
A49: Elevator Service | G49: 331.92 | K49: 100 | P49: 431.92 | Q49: 650 | R49: 600
A50: Elevator Slack Test (every odd year) | P50: 0 | Q50: 750 | R50: 0
A51: Furnace Inspection - Hartford (Even Year) | P51: 0 | Q51: 150 | R51: 150
A52: Furnace Cleaning Church/Parsonage | P52: 0 | Q52: 550 | R52: 600
A53: Equipment (Lawn Mowers Etc.) | G53: 1374.98 | P53: =SUM(C53:N53) -> 1374.98 | R53: 500
A54: Parsonage (Maintenance Repairs) | C54: 1900 | D54: 493 | P54: =SUM(C54:N54) -> 2393 | Q54: 2000 | R54: 2000
A55: Paper Supplies, Plastic Liners, etc. | I55: 23.38 | P55: =SUM(B55:M55) -> 23.38 | Q55: 100 | R55: 100
A56: Telephone/Internet | C56: 159.98 | D56: 159.98 | E56: 169.98 | F56: 169.98 | G56: 169.98 | H56: 169.98 | I56: 169.98 | J56: 164.68 | K56: 169.98 | L56: 169.98 | M56: 169.98 | N56: 169.98 | P56: 2014.46 | Q56: 1920 | R56: 2040
A57: Gas - Church | C57: 212 | D57: 212 | F57: 212 | G57: 424 | H57: 212 | I57: 212 | J57: 212 | L57: 258 | M57: 258 | N57: 258 | P57: 2470 | Q57: 2700 | R57: 2700
A58: Electric - Church | C58: 101 | D58: 101 | F58: 101 | G58: 174 | H58: 87 | I58: 87 | J58: 87 | L58: 87 | M58: 87 | N58: 87 | P58: 999 | Q58: 900 | R58: 1000
A59: Gas & Electric - Parsonage | C59: 228.94 | D59: 294.49 | F59: 132 | G59: 298.18 | H59: 95.25 | I59: 124.37 | J59: 147.31 | L59: 119.78 | P59: 1440.32
A61: Taxes and Insurance
A62: Water and Sewer - Parsonage | D62: 57.52 | G62: 57.82 | J62: 64.52 | M62: 65 | P62: 244.86 | Q62: 350 | R62: 350
A63: Water and Sewer - Church | D63: 43.54 | G63: 44.25 | J63: 44.85 | M63: 45 | P63: 177.64 | Q63: 200 | R63: 200
A64: City Services (Ambulance, Fire, etc.) | C64: 627.97 | G64: 387 | P64: 1014.97 | Q64: 700 | R64: 1100
A65: Workers Compensation | P65: 0
A66: NY State Disability | P66: 0
A68: Salaries
A69: Salary - Minister | P69: =SUM(C69:N69) -> 0
A70: Salary - Cleaner | C70: 33.75 | E70: 30 | F70: 30 | G70: 30 | I70: 30 | J70: 30 | P70: 183.75 | Q70: 500 | R70: 300
A71: Housing Allowance $17,000 yr | P71: 0
A72: Pension Plan | P72: 0
A73: W2 Fees (Annual) | P73: 0
A74: Pulpit Supply | H74: 1000 | I74: 400 | J74: 600 | K74: 800 | L74: 800 | M74: 800 | N74: 1000 | P74: 5400 | Q74: 10000 | R74: 10400
B75: Donated Back to UCC | D75: 400 | E75: 400 | F75: 400 | G75: 500 | H75: 400 | I75: 200 | K75: 100 | P75: =SUM(C75:N75) -> 2400
B76: Donated to ConsernsU | D76: 400 | E76: 400 | F76: 400 | G76: 500 | H76: 400 | I76: 200 | K76: 100 | P76: =SUM(C76:N76) -> 2400
P77: =SUM(P75:P76,P74) -> 10200
A78: Search Committee | P78: 0
A79: Salary - Organist | P79: 0
A80: Organist Supply | P80: 0
A81: Payroll Service | P81: 0
A82: Payroll Taxes/Witholding | P82: 0
A83: CCLI - Copyright Coverage, Song Select, Stream | R83: 238
A84: Vanco- E Giving (Monthly Fee) | C84: 36.19 | D84: 43.46 | E84: 35.52 | F84: 35.97 | G84: 34.62 | H84: 38.11 | I84: 35.07 | J84: 37.41 | K84: 35.47 | L84: 33.87 | M84: 36 | N84: 36 | P84: 437.69 | Q84: 475 | R84: 475
A86: TOTAL EXPENSES | C86: =SUM(C9:C58,C62:C84) -> 4593.96 | D86: 3490.68 | E86: 2438.82 | F86: 1816.94 | G86: 7626.17 | H86: 2862.47 | I86: 1468.55 | J86: 1353.86 | K86: 2046.73 | L86: 4281.52 | M86: 1578.97 | N86: 1668.97 | P86: =SUM(P9:P58,P62:P73,P77:P84) -> 35227.64 | Q86: =SUM(Q9:Q84) -> 33959 | R86: =SUM(R9:R84) -> 34953
A88: INCOME - EXPENSES | C88: =+C5-C86 -> -986.43 | D88: 10772.63 | E88: 1647.93 | F88: 1762.03 | G88: -2570.93 | H88: 718.74 | I88: 2525.16 | J88: 2500.11 | K88: 1398.57 | L88: -300.52 | M88: 2339.03 | N88: 2249.03 | P88: =SUM(C88:N88) -> 22055.35

Sheet I-E 2024 BUDG 2025
A1: Income and Expense 2024 / Budget 2025
C3: JAN | D3: FEB | E3: MAR | F3: APR | G3: MAY | H3: JUN | I3: JUL | J3: AUG | K3: SEP | L3: OCT | M3: NOV | N3: DEC | P3: Total | Q3: 2024 Budget | R3: 2025 Budget
A5: Income | C5: 0 | D5: 0 | E5: 0 | F5: 0 | G5: 0 | H5: 0 | I5: 0 | J5: 0 | K5: 0 | L5: 0 | M5: 0 | N5: 0 | P5: =SUM(C5:N5) -> 0
A7: Expenses
A8: Office Expenses
A9: Advertising | P9: =SUM(C9:N9) -> 0 | Q9: 500
A10: Christian Education Supplies | P10: 0
A11: Continuing Education | P11: 0
A12: Music Expense | P12: 0
A13: Worship/Vitality Group Expenses | P13: 0
A14: Fellowship Expenses | P14: 0 | Q14: 100
A15: Lenten Luncheon | P15: 0
A16: Special Event Expenses / Misc. | P16: 0 | Q16: 1000
A17: Equipment | P17: 0 | Q17: 500
A18: Ministry | P18: 0
A19: Education and Books | P19: 0
A20: Web Hosting | P20: 0 | Q20: 40
A21: Copier Per Page Usage | P21: =SUM(C21:N21) -> 0
A22: Postage | P22: =SUM(C22:N22) -> 0 | Q22: 100
A23: Domain Name Renewal | P23: 0 | Q23: 40
A24: CCLI - Copyright Coverage, Song Select, Stream | D24: 238
A26: Missions
A27: Our Church's Wider Mission | P27: 0 | Q27: 900 | R27: 0
A28: EGB Police Dept. (Annual) | P28: 0 | Q28: 100 | R28: 0
A29: Bruen Rescue (Annual) | P29: 0 | Q29: 100 | R29: 0
A30: Capital Area Council of Churches | P30: 0 | Q30: 50 | R30: 0
A31: Albany Damian Center | P31: 0 | Q31: 50 | R31: 0
A32: Boy's and Girl's Club | P32: 0 | Q32: 50 | R32: 0
A33: Interfaith Partnership for the Homeless | P33: 0 | Q33: 50 | R33: 0
A34: Protestant Campus Ministry | P34: 0 | Q34: 0 | R34: 50
A35: Doors of Hope | P35: 0 | Q35: 0 | R35: 50
A36: Veterans Miracle Center | P36: 0 | Q36: 0 | R36: 50
A37: Family Promise of the Capital Region | P37: 0 | Q37: 0 | R37: 50
A39: NY Conference Annual Meeting | P39: =SUM(C39:N39) -> 0 | Q39: 0 | R39: 0
A40: Per Capita Dues Expense | P40: =SUM(C40:N40) -> 0 | Q40: 270
A41: ZOOM | P41: 0 | Q41: 200
A43: Property and Maintenance
A44: Church Mutual - Liability Ins | P44: 0 | Q44: 5000
A45: Church Mutual - Umbrella Ins (Annually) | P45: 0 | Q45: 300
A46: Emergency Repairs | P46: 0 | Q46: 2000
A47: Snow Plowing / Sanding | P47: 0 | Q47: 600
A48: Lawn Mowing | P48: 0
A49: Tri City Extinguisher Inspection | P49: 0 | Q49: 250
A50: Elevator Service | P50: 0 | Q50: 600
A51: Elevator Slack Test (every odd year) | P51: 0 | Q51: 0
A52: Furnace Inspection - Hartford (Even Year) | P52: 0 | Q52: 150
A53: Furnace Cleaning Church/Parsonage | P53: 0 | Q53: 600
A54: Equipment (Lawn Mowers Etc.) | P54: =SUM(C54:N54) -> 0 | Q54: 500
A55: Parsonage (Maintenance Repairs) | P55: =SUM(C55:N55) -> 0 | Q55: 2000
A56: Paper Supplies, Plastic Liners, etc. | P56: =SUM(B56:M56) -> 0 | Q56: 100
A57: Telephone/Internet | P57: 0 | Q57: 2040
A58: Gas - Church | P58: 0 | Q58: 2700
A59: Electric - Church | P59: 0 | Q59: 1000
A60: Gas & Electric - Parsonage | P60: 0
A62: Taxes and Insurance
A63: Water and Sewer - Parsonage | P63: 0 | Q63: 350
A64: Water and Sewer - Church | P64: 0 | Q64: 200
A65: City Services (Ambulance, Fire, etc.) | P65: 0 | Q65: 1100
A66: Workers Compensation | P66: 0
A67: NY State Disability | P67: 0
A69: Salaries
A70: Salary - Minister | P70: =SUM(C70:N70) -> 0
A71: Salary - Cleaner | P71: 0 | Q71: 300
A72: Housing Allowance $17,000 yr | P72: 0
A73: Pension Plan | P73: 0
A74: W2 Fees (Annual) | P74: 0
A75: Pulpit Supply | P75: 0 | Q75: 10400
B76: Donated Back to UCC | P76: =SUM(C76:N76) -> 0
B77: Donated to ConsernsU | P77: =SUM(C77:N77) -> 0
P78: =SUM(P76:P77,P75) -> 0
A79: Search Committee | P79: 0
A80: Salary - Organist | P80: 0
A81: Organist Supply | P81: 0
A82: Payroll Service | P82: 0
A83: Payroll Taxes/Witholding | P83: 0
A84: Vanco- E Giving (Monthly Fee) | P84: 0 | Q84: 475
A86: TOTAL EXPENSES | C86: =SUM(C9:C59,C63:C84) -> 0 | D86: 238 | E86: 0 | F86: 0 | G86: 0 | H86: 0 | I86: 0 | J86: 0 | K86: 0 | L86: 0 | M86: 0 | N86: 0 | P86: =SUM(P9:P59,P63:P74,P78:P84) -> 0 | Q86: =SUM(Q9:Q84) -> 34715 | R86: =SUM(R9:R84) -> 200
A88: INCOME - EXPENSES | C88: =+C5-C86 -> 0 | D88: -238 | E88: 0 | F88: 0 | G88: 0 | H88: 0 | I88: 0 | J88: 0 | K88: 0 | L88: 0 | M88: 0 | N88: 0 | P88: =SUM(C88:N88) -> -238
